[Event "*** Titled Tuesday Blitz"]
[Site "Chess.com"]
[Date "2020.05.26"]
[Round "7"]
[White "Orest_Vovk"]
[Black "SketchyMoves"]
[Result "0-1"]
[WhiteElo "2439"]
[BlackElo "2643"]
[TimeControl "180+1"]
[EndTime "11:21:00 PDT"]
[Termination "SketchyMoves won on time"]

1. g4 {[%clk 0:03:00.9]} 1... h5 {[%clk 0:02:55.2]} 2. g5 {[%clk 0:03:00.8]}
2... c6 {[%clk 0:02:52.2]} 3. Bg2 {[%clk 0:02:59]} 3... d5 {[%clk 0:02:49.1]} 4.
d4 {[%clk 0:02:54.4]} 4... g6 {[%clk 0:02:46.9]} 5. Bf4 {[%clk 0:02:53.1]} 5...
Bg7 {[%clk 0:02:40.7]} 6. c3 {[%clk 0:02:53.3]} 6... Bf5 {[%clk 0:02:32.2]} 7.
Qb3 {[%clk 0:02:52.1]} 7... Qb6 {[%clk 0:02:30.2]} 8. Nd2 {[%clk 0:02:51.5]}
8... Nd7 {[%clk 0:02:29.8]} 9. e4 {[%clk 0:02:48.6]} 9... dxe4 {[%clk
0:02:26.7]} 10. Bxe4 {[%clk 0:02:48.5]} 10... Be6 {[%clk 0:01:47.7]} 11. Qxb6
{[%clk 0:02:43]} 11... Nxb6 {[%clk 0:01:46.9]} 12. Ngf3 {[%clk 0:02:38.3]} 12...
Bd5 {[%clk 0:01:45.5]} 13. h4 {[%clk 0:02:28]} 13... e6 {[%clk 0:01:45.3]} 14.
Be5 {[%clk 0:02:21.4]} 14... Bxe5 {[%clk 0:01:41.2]} 15. Nxe5 {[%clk 0:02:22.3]}
15... Ne7 {[%clk 0:01:38.7]} 16. c4 {[%clk 0:02:07.2]} 16... Bxe4 {[%clk
0:01:38.7]} 17. Nxe4 {[%clk 0:02:07.5]} 17... Nf5 {[%clk 0:01:39.6]} 18. O-O-O
{[%clk 0:01:22.9]} 18... Nd7 {[%clk 0:01:27.1]} 19. Nxd7 {[%clk 0:01:10.8]}
19... Kxd7 {[%clk 0:01:28]} 20. d5 {[%clk 0:01:10.9]} 20... cxd5 {[%clk
0:01:27.8]} 21. cxd5 {[%clk 0:01:11.1]} 21... Rac8+ {[%clk 0:01:27.6]} 22. Kb1
{[%clk 0:01:11]} 22... Rhd8 {[%clk 0:01:13.5]} 23. dxe6+ {[%clk 0:01:04.6]}
23... Kxe6 {[%clk 0:01:14.4]} 24. Rde1 {[%clk 0:00:55.4]} 24... Ke5 {[%clk
0:01:05.8]} 25. Nf6+ {[%clk 0:00:36.3]} 25... Kf4 {[%clk 0:01:04.1]} 26. Re4+
{[%clk 0:00:23.1]} 26... Kf3 {[%clk 0:01:03.6]} 27. Ree1 {[%clk 0:00:04.2]}
27... Rd4 {[%clk 0:00:57.2]} 28. Rh3+ {[%clk 0:00:02.6]} 28... Kg2 {[%clk
0:00:53.4]} 29. Reh1 {[%clk 0:00:02.3]} 29... Rcd8 {[%clk 0:00:44.8]} 30. R3h2+
{[%clk 0:00:01.9]} 30... Kf3 {[%clk 0:00:44.6]} 31. Rh3+ {[%clk 0:00:02.4]}
31... Ke2 {[%clk 0:00:43.1]} 32. f4 {[%clk 0:00:02.6]} 32... Rd1+ {[%clk
0:00:42.1]} 33. Rxd1 {[%clk 0:00:02.6]} 33... Rxd1+ {[%clk 0:00:41.8]} 34. Kc2
{[%clk 0:00:03.5]} 34... Rd8 {[%clk 0:00:31.4]} 35. Rb3 {[%clk 0:00:02.2]} 35...
Nd4+ {[%clk 0:00:29.4]} 36. Kc3 {[%clk 0:00:02.5]} 36... Nxb3 {[%clk 0:00:29.6]}
37. Kxb3 {[%clk 0:00:03.4]} 37... Kf3 {[%clk 0:00:29.9]} 38. f5 {[%clk 0:00:03]}
38... Kg3 {[%clk 0:00:28.9]} 0-1

[Event "*** Titled Tuesday Blitz"]
[Site "Chess.com"]
[Date "2020.05.26"]
[Round "7"]
[White "GM_dmitrij"]
[Black "VMikhalevski"]
[Result "0-1"]
[WhiteElo "2919"]
[BlackElo "2775"]
[TimeControl "180+1"]
[EndTime "11:21:01 PDT"]
[Termination "VMikhalevski won on time"]

1. e4 {[%clk 0:03:00.9]} 1... e5 {[%clk 0:02:59.4]} 2. Nf3 {[%clk 0:03:01.3]}
2... Nc6 {[%clk 0:02:59.8]} 3. Bc4 {[%clk 0:03:01.9]} 3... Bc5 {[%clk 0:02:59]}
4. c3 {[%clk 0:03:02.2]} 4... Nf6 {[%clk 0:02:59.5]} 5. d3 {[%clk 0:03:02.8]}
5... d6 {[%clk 0:02:58.2]} 6. O-O {[%clk 0:03:02.4]} 6... a5 {[%clk 0:02:55.6]}
7. Nbd2 {[%clk 0:03:00.5]} 7... O-O {[%clk 0:02:52.8]} 8. h3 {[%clk 0:02:59.4]}
8... h6 {[%clk 0:02:49.3]} 9. Re1 {[%clk 0:02:58.9]} 9... Re8 {[%clk 0:02:48.2]}
10. Nf1 {[%clk 0:02:55.9]} 10... Be6 {[%clk 0:02:43.7]} 11. Bb5 {[%clk
0:02:55.8]} 11... Bd7 {[%clk 0:02:39.6]} 12. Ng3 {[%clk 0:02:50.9]} 12... Bb6
{[%clk 0:02:36.4]} 13. a4 {[%clk 0:02:48.2]} 13... Ne7 {[%clk 0:02:35.9]} 14.
Bxd7 {[%clk 0:02:46.2]} 14... Qxd7 {[%clk 0:02:35.5]} 15. Nh4 {[%clk 0:02:44.9]}
15... Ng6 {[%clk 0:02:30.9]} 16. Nhf5 {[%clk 0:02:29.8]} 16... d5 {[%clk
0:02:30.1]} 17. Qf3 {[%clk 0:02:29.2]} 17... Re6 {[%clk 0:02:21.9]} 18. Ne3
{[%clk 0:01:41.7]} 18... Rd8 {[%clk 0:01:53.4]} 19. exd5 {[%clk 0:00:48.5]}
19... Nxd5 {[%clk 0:01:51.4]} 20. Nef5 {[%clk 0:00:42.6]} 20... Nf6 {[%clk
0:01:33.8]} 21. Be3 {[%clk 0:00:33.7]} 21... Bxe3 {[%clk 0:01:25.2]} 22. Rxe3
{[%clk 0:00:34.6]} 22... b6 {[%clk 0:01:20]} 23. Rae1 {[%clk 0:00:34.1]} 23...
Nd5 {[%clk 0:01:17.2]} 24. Re4 {[%clk 0:00:31.6]} 24... c5 {[%clk 0:01:09.7]}
25. d4 {[%clk 0:00:28.8]} 25... exd4 {[%clk 0:01:09]} 26. cxd4 {[%clk
0:00:29.7]} 26... c4 {[%clk 0:01:08]} 27. Qg4 {[%clk 0:00:20.7]} 27... Nf6
{[%clk 0:01:00.1]} 28. Rxe6 {[%clk 0:00:09.9]} 28... Nxg4 {[%clk 0:00:58]} 29.
Rd6 {[%clk 0:00:10.3]} 29... Qc7 {[%clk 0:00:34.9]} 30. Rxd8+ {[%clk 0:00:10.4]}
30... Qxd8 {[%clk 0:00:34.9]} 31. hxg4 {[%clk 0:00:11.3]} 31... Nf4 {[%clk
0:00:33.7]} 32. Re4 {[%clk 0:00:08.9]} 32... Nd3 {[%clk 0:00:31.8]} 33. Nh5
{[%clk 0:00:07.5]} 33... g6 {[%clk 0:00:27.4]} 34. Nxh6+ {[%clk 0:00:07.3]}
34... Kf8 {[%clk 0:00:24]} 0-1

[Event "*** Titled Tuesday Blitz"]
[Site "Chess.com"]
[Date "2020.05.26"]
[Round "7"]
[White "kingofthenil"]
[Black "GMStefanova"]
[Result "0-1"]
[WhiteElo "2462"]
[BlackElo "2647"]
[TimeControl "180+1"]
[EndTime "11:21:01 PDT"]
[Termination "GMStefanova won on time"]

1. e4 {[%clk 0:03:00.9]} 1... c6 {[%clk 0:02:59.7]} 2. c4 {[%clk 0:02:59.9]}
2... d5 {[%clk 0:02:58.8]} 3. cxd5 {[%clk 0:03:00.8]} 3... cxd5 {[%clk
0:02:58.6]} 4. exd5 {[%clk 0:02:58.7]} 4... Nf6 {[%clk 0:02:58]} 5. Nc3 {[%clk
0:02:59.6]} 5... Nxd5 {[%clk 0:02:55.1]} 6. Nf3 {[%clk 0:03:00.5]} 6... Nc6
{[%clk 0:02:53.7]} 7. Bb5 {[%clk 0:02:59.9]} 7... g6 {[%clk 0:02:49.2]} 8. Ne5
{[%clk 0:02:50.5]} 8... Qd6 {[%clk 0:02:38.9]} 9. d4 {[%clk 0:02:34.8]} 9... Bg7
{[%clk 0:02:31.7]} 10. Qf3 {[%clk 0:02:34.2]} 10... Bxe5 {[%clk 0:02:19.1]} 11.
dxe5 {[%clk 0:02:17.8]} 11... Qxe5+ {[%clk 0:02:17.4]} 12. Be3 {[%clk
0:02:11.8]} 12... Nxe3 {[%clk 0:01:59.6]} 13. Bxc6+ {[%clk 0:02:10.6]} 13...
bxc6 {[%clk 0:01:58.5]} 14. Qxc6+ {[%clk 0:02:07.5]} 14... Kf8 {[%clk
0:01:58.2]} 15. Qxa8 {[%clk 0:01:50.8]} 15... Kg7 {[%clk 0:01:28.5]} 16. Qe4
{[%clk 0:00:54.6]} 16... Nc2+ {[%clk 0:01:24.2]} 17. Kd2 {[%clk 0:00:44.8]}
17... Rd8+ {[%clk 0:01:08.8]} 18. Kxc2 {[%clk 0:00:09.4]} 18... Bf5 {[%clk
0:01:08.1]} 19. Rhe1 {[%clk 0:00:09.4]} 19... Bxe4+ {[%clk 0:01:06.1]} 20. Rxe4
{[%clk 0:00:10.3]} 20... Qxh2 {[%clk 0:01:04.6]} 21. Rxe7 {[%clk 0:00:02.5]}
21... Qxg2 {[%clk 0:01:03.2]} 22. Re2 {[%clk 0:00:02]} 22... h5 {[%clk
0:00:57.6]} 23. a4 {[%clk 0:00:01.1]} 23... h4 {[%clk 0:00:56.5]} 24. b4 {[%clk
0:00:01.5]} 24... h3 {[%clk 0:00:54.4]} 25. f4 {[%clk 0:00:02.3]} 25... Qf3
{[%clk 0:00:52.5]} 26. Rae1 {[%clk 0:00:01.4]} 26... Qxf4 {[%clk 0:00:43]} 27.
Re4 {[%clk 0:00:01.3]} 27... Qf5 {[%clk 0:00:40.2]} 28. Kb3 {[%clk 0:00:01.8]}
28... Rd3 {[%clk 0:00:37.7]} 29. Re5 {[%clk 0:00:01.9]} 29... Qf3 {[%clk
0:00:34.5]} 30. Rc5 {[%clk 0:00:01.9]} 30... h2 {[%clk 0:00:32.9]} 31. Rc7
{[%clk 0:00:01.8]} 31... h1=Q {[%clk 0:00:30.1]} 32. Rxh1 {[%clk 0:00:02.2]}
32... Qxh1 {[%clk 0:00:29.7]} 33. Rxa7 {[%clk 0:00:03.1]} 33... Qd5+ {[%clk
0:00:27.1]} 34. Kb2 {[%clk 0:00:02.7]} 34... Qc4 {[%clk 0:00:23.8]} 0-1

[Event "*** Titled Tuesday Blitz"]
[Site "Chess.com"]
[Date "2020.05.26"]
[Round "7"]
[White "DariaVoit"]
[Black "GMSrinath"]
[Result "0-1"]
[WhiteElo "2493"]
[BlackElo "2807"]
[TimeControl "180+1"]
[EndTime "11:21:01 PDT"]
[Termination "GMSrinath won by resignation"]

1. d4 {[%clk 0:03:00.9]} 1... f5 {[%clk 0:02:59.4]} 2. e4 {[%clk 0:03:00.4]}
2... fxe4 {[%clk 0:02:58.7]} 3. Nc3 {[%clk 0:03:00.8]} 3... Nf6 {[%clk
0:02:58.3]} 4. Bg5 {[%clk 0:03:00.6]} 4... d5 {[%clk 0:02:58.7]} 5. f3 {[%clk
0:03:00.1]} 5... exf3 {[%clk 0:02:58.6]} 6. Nxf3 {[%clk 0:02:58.9]} 6... Nc6
{[%clk 0:02:59.2]} 7. Bb5 {[%clk 0:02:54.8]} 7... Bg4 {[%clk 0:02:59.5]} 8. O-O
{[%clk 0:02:51.4]} 8... e6 {[%clk 0:03:00]} 9. h3 {[%clk 0:02:49.5]} 9... Bxf3
{[%clk 0:02:58.2]} 10. Qxf3 {[%clk 0:02:50.4]} 10... Be7 {[%clk 0:02:58.5]} 11.
Rae1 {[%clk 0:02:49.3]} 11... O-O {[%clk 0:02:59]} 12. Rxe6 {[%clk 0:02:41.4]}
12... Nxd4 {[%clk 0:02:57.8]} 13. Qe3 {[%clk 0:02:36]} 13... Nxe6 {[%clk
0:02:44.5]} 14. Qxe6+ {[%clk 0:02:36.9]} 14... Kh8 {[%clk 0:02:45.1]} 15. Bd3
{[%clk 0:02:28.8]} 15... c6 {[%clk 0:02:33.6]} 16. Ne2 {[%clk 0:02:10.5]} 16...
Qd6 {[%clk 0:02:02.4]} 17. Qe3 {[%clk 0:01:50.5]} 17... Ne4 {[%clk 0:01:44.7]}
18. Bf4 {[%clk 0:01:48.4]} 18... Qc5 {[%clk 0:01:36.7]} 19. Nd4 {[%clk
0:01:48.2]} 19... Bf6 {[%clk 0:01:26.7]} 20. Ne6 {[%clk 0:01:36.1]} 20... Qxe3+
{[%clk 0:01:25.7]} 21. Bxe3 {[%clk 0:01:37]} 21... Rf7 {[%clk 0:01:12.3]} 22. g4
{[%clk 0:01:12.4]} 22... Re7 {[%clk 0:01:09.5]} 23. Nd4 {[%clk 0:01:07.8]} 23...
Ng3 {[%clk 0:01:08.7]} 24. Rxf6 {[%clk 0:00:55.2]} 24... gxf6 {[%clk 0:01:09.6]}
25. Bf4 {[%clk 0:00:49.4]} 25... Ne4 {[%clk 0:01:07.7]} 26. Nf5 {[%clk
0:00:49.5]} 26... Re6 {[%clk 0:01:07.6]} 27. Kg2 {[%clk 0:00:45.4]} 27... Rae8
{[%clk 0:01:05.7]} 28. Nd4 {[%clk 0:00:43.9]} 28... R6e7 {[%clk 0:01:05.9]} 29.
Nf5 {[%clk 0:00:43.5]} 29... Rd7 {[%clk 0:01:06.5]} 30. h4 {[%clk 0:00:39.5]}
30... Nc5 {[%clk 0:01:06.7]} 31. Bf1 {[%clk 0:00:39]} 31... Ne6 {[%clk
0:01:06.3]} 32. Bh6 {[%clk 0:00:33.1]} 32... a6 {[%clk 0:01:03]} 33. Kf3 {[%clk
0:00:31.1]} 33... c5 {[%clk 0:01:02.3]} 34. g5 {[%clk 0:00:28]} 34... fxg5
{[%clk 0:01:00.5]} 35. hxg5 {[%clk 0:00:28.9]} 35... Rf7 {[%clk 0:00:59]} 36.
Kg4 {[%clk 0:00:28.9]} 36... Nd4 {[%clk 0:00:59.1]} 37. Bd3 {[%clk 0:00:27.2]}
37... Nxf5 {[%clk 0:00:55.8]} 38. Bxf5 {[%clk 0:00:28.1]} 38... Re2 {[%clk
0:00:54]} 39. Bd3 {[%clk 0:00:18.1]} 39... Rg2+ {[%clk 0:00:51.2]} 40. Kh3
{[%clk 0:00:18.3]} 40... Rgf2 {[%clk 0:00:51.7]} 41. g6 {[%clk 0:00:18]} 41...
R7f3+ {[%clk 0:00:48]} 42. Kg4 {[%clk 0:00:17.6]} 42... hxg6 {[%clk 0:00:48.9]}
43. Bxg6 {[%clk 0:00:11.5]} 43... Rf6 {[%clk 0:00:48.6]} 44. Kh5 {[%clk
0:00:10.6]} 44... Rxg6 {[%clk 0:00:42]} 45. Kxg6 {[%clk 0:00:10.5]} 45... Rxc2
{[%clk 0:00:42.9]} 0-1

[Event "*** Titled Tuesday Blitz"]
[Site "Chess.com"]
[Date "2020.05.26"]
[Round "7"]
[White "bilelou"]
[Black "Grandelicious"]
[Result "0-1"]
[WhiteElo "2522"]
[BlackElo "2800"]
[TimeControl "180+1"]
[EndTime "11:21:03 PDT"]
[Termination "Grandelicious won on time"]

1. e4 {[%clk 0:03:00.9]} 1... c5 {[%clk 0:02:59.8]} 2. Nf3 {[%clk 0:03:00.5]}
2... d6 {[%clk 0:03:00.4]} 3. d4 {[%clk 0:02:59]} 3... cxd4 {[%clk 0:03:01.3]}
4. Nxd4 {[%clk 0:02:59.5]} 4... Nf6 {[%clk 0:03:02]} 5. Nc3 {[%clk 0:02:59.9]}
5... a6 {[%clk 0:03:01.9]} 6. h4 {[%clk 0:03:00]} 6... e5 {[%clk 0:02:58.3]} 7.
Nb3 {[%clk 0:02:58.7]} 7... Be7 {[%clk 0:02:53]} 8. Be2 {[%clk 0:02:57.6]} 8...
h5 {[%clk 0:02:31.3]} 9. Bg5 {[%clk 0:02:41.4]} 9... g6 {[%clk 0:02:27]} 10. Qd2
{[%clk 0:02:37.4]} 10... Be6 {[%clk 0:02:26.1]} 11. O-O-O {[%clk 0:02:36.2]}
11... Nbd7 {[%clk 0:02:23.7]} 12. f4 {[%clk 0:02:29.5]} 12... Rc8 {[%clk
0:02:16.9]} 13. Rhf1 {[%clk 0:02:20.8]} 13... b5 {[%clk 0:02:10]} 14. Qe3 {[%clk
0:02:14.1]} 14... Qc7 {[%clk 0:01:35.3]} 15. a3 {[%clk 0:02:07.5]} 15... Qb8
{[%clk 0:00:43.6]} 16. Kb1 {[%clk 0:01:59.9]} 16... Bc4 {[%clk 0:00:37.1]} 17.
fxe5 {[%clk 0:01:32.3]} 17... dxe5 {[%clk 0:00:36.4]} 18. Qf2 {[%clk 0:00:29.5]}
18... Be6 {[%clk 0:00:23.1]} 19. Qe3 {[%clk 0:00:24.3]} 19... b4 {[%clk
0:00:17.1]} 20. axb4 {[%clk 0:00:23.8]} 20... Qxb4 {[%clk 0:00:18]} 21. Nd5
{[%clk 0:00:23.2]} 21... Nxd5 {[%clk 0:00:13.1]} 22. exd5 {[%clk 0:00:23.1]}
22... Bf5 {[%clk 0:00:13.7]} 23. Bd3 {[%clk 0:00:13.5]} 23... Bxg5 {[%clk
0:00:12.9]} 24. Qxg5 {[%clk 0:00:11.5]} 24... e4 {[%clk 0:00:13.4]} 25. d6
{[%clk 0:00:08.7]} 25... O-O {[%clk 0:00:10.7]} 26. Be2 {[%clk 0:00:06.5]} 26...
Be6 {[%clk 0:00:07.6]} 27. Nd4 {[%clk 0:00:04]} 27... Rc5 {[%clk 0:00:07]} 28.
Qg3 {[%clk 0:00:01]} 28... Rb8 {[%clk 0:00:06.8]} 0-1

[Event "*** Titled Tuesday Blitz"]
[Site "Chess.com"]
[Date "2020.05.26"]
[Round "7"]
[White "TenisMaster"]
[Black "velemajstor767276"]
[Result "1-0"]
[WhiteElo "2817"]
[BlackElo "2589"]
[TimeControl "180+1"]
[EndTime "11:21:03 PDT"]
[Termination "TenisMaster won on time"]

1. e4 {[%clk 0:03:00.9]} 1... c5 {[%clk 0:03:00]} 2. Nf3 {[%clk 0:03:00.2]} 2...
e6 {[%clk 0:03:00.1]} 3. d4 {[%clk 0:03:00]} 3... cxd4 {[%clk 0:03:01]} 4. Nxd4
{[%clk 0:03:00.4]} 4... Nf6 {[%clk 0:03:01.3]} 5. Nc3 {[%clk 0:02:59.6]} 5...
Nc6 {[%clk 0:03:01.8]} 6. a3 {[%clk 0:02:55.3]} 6... Qc7 {[%clk 0:02:55.4]} 7.
f4 {[%clk 0:02:54.8]} 7... Nxd4 {[%clk 0:02:50.9]} 8. Qxd4 {[%clk 0:02:53.9]}
8... Bc5 {[%clk 0:02:51.4]} 9. Qd3 {[%clk 0:02:47.5]} 9... e5 {[%clk 0:02:05.6]}
10. Qg3 {[%clk 0:02:19.5]} 10... Bd4 {[%clk 0:01:14.9]} 11. Nb5 {[%clk
0:01:45.6]} 11... Qxc2 {[%clk 0:01:12.3]} 12. Nxd4 {[%clk 0:01:26.4]} 12... exd4
{[%clk 0:01:00.6]} 13. Bd3 {[%clk 0:01:25.5]} 13... Qb3 {[%clk 0:01:00.5]} 14.
O-O {[%clk 0:01:02.2]} 14... d6 {[%clk 0:00:23.9]} 15. a4 {[%clk 0:01:01]} 15...
Bd7 {[%clk 0:00:18.6]} 16. Qxg7 {[%clk 0:00:33.7]} 16... Rg8 {[%clk 0:00:15.6]}
17. Qxf6 {[%clk 0:00:33.4]} 17... Qxd3 {[%clk 0:00:15.6]} 18. f5 {[%clk
0:00:33.6]} 18... Qxe4 {[%clk 0:00:12]} 19. Bg5 {[%clk 0:00:33.1]} 19... Rxg5
{[%clk 0:00:08.5]} 20. Qxg5 {[%clk 0:00:31.9]} 20... Qe3+ {[%clk 0:00:05.8]} 21.
Qxe3+ {[%clk 0:00:31.4]} 21... dxe3 {[%clk 0:00:06.7]} 22. Rae1 {[%clk
0:00:30.4]} 22... Bc6 {[%clk 0:00:07]} 23. Rxe3+ {[%clk 0:00:30.2]} 23... Kd7
{[%clk 0:00:07.7]} 24. f6 {[%clk 0:00:30.5]} 24... Rg8 {[%clk 0:00:06.4]} 25.
Re7+ {[%clk 0:00:29.7]} 25... Kd8 {[%clk 0:00:06.9]} 26. Rf2 {[%clk 0:00:29.3]}
26... Bd5 {[%clk 0:00:07]} 27. Rd2 {[%clk 0:00:27.8]} 27... Rg5 {[%clk
0:00:06.9]} 28. h3 {[%clk 0:00:18.4]} 28... h5 {[%clk 0:00:05.8]} 29. Kh2 {[%clk
0:00:18.1]} 29... Rf5 {[%clk 0:00:05]} 30. Re3 {[%clk 0:00:16.7]} 30... Kd7
{[%clk 0:00:04.2]} 31. Red3 {[%clk 0:00:16.8]} 31... Kc6 {[%clk 0:00:01.9]} 32.
b4 {[%clk 0:00:15.9]} 32... a6 {[%clk 0:00:01.3]} 33. Rd4 {[%clk 0:00:15.8]}
33... b6 {[%clk 0:00:01.3]} 34. Kg3 {[%clk 0:00:15.1]} 1-0

[Event "*** Titled Tuesday Blitz"]
[Site "Chess.com"]
[Date "2020.05.26"]
[Round "7"]
[White "1stSecond"]
[Black "2L8IWUN"]
[Result "1-0"]
[WhiteElo "2700"]
[BlackElo "2546"]
[TimeControl "180+1"]
[EndTime "11:21:03 PDT"]
[Termination "1stSecond won by checkmate"]

1. d4 {[%clk 0:02:56.5]} 1... Nf6 {[%clk 0:02:56.9]} 2. Bg5 {[%clk 0:02:56.1]}
2... Ne4 {[%clk 0:02:56.6]} 3. Bf4 {[%clk 0:02:53.6]} 3... Nc6 {[%clk
0:02:56.7]} 4. d5 {[%clk 0:02:49.9]} 4... e5 {[%clk 0:02:29.3]} 5. Bg3 {[%clk
0:02:09.9]} 5... Nxg3 {[%clk 0:02:19.3]} 6. hxg3 {[%clk 0:02:09.4]} 6... Nb8
{[%clk 0:02:11]} 7. e3 {[%clk 0:01:49.3]} 7... c6 {[%clk 0:01:39.6]} 8. Nf3
{[%clk 0:01:34.9]} 8... f6 {[%clk 0:01:25.6]} 9. c3 {[%clk 0:01:08.1]} 9... a5
{[%clk 0:01:08.5]} 10. Bd3 {[%clk 0:01:07.4]} 10... Bc5 {[%clk 0:01:07.1]} 11.
Bxh7 {[%clk 0:00:57.9]} 11... Ke7 {[%clk 0:00:39.5]} 12. Nbd2 {[%clk 0:00:51.7]}
12... cxd5 {[%clk 0:00:33.8]} 13. Nb3 {[%clk 0:00:51]} 13... d6 {[%clk
0:00:31.6]} 14. Qxd5 {[%clk 0:00:49.6]} 14... Be6 {[%clk 0:00:24.7]} 15. Qxb7+
{[%clk 0:00:42]} 15... Nd7 {[%clk 0:00:24.3]} 16. Nxc5 {[%clk 0:00:42.4]} 16...
dxc5 {[%clk 0:00:23.3]} 17. O-O-O {[%clk 0:00:31.3]} 17... Rb8 {[%clk
0:00:23.7]} 18. Qc6 {[%clk 0:00:29.1]} 18... Bxa2 {[%clk 0:00:19.8]} 19. Qd6+
{[%clk 0:00:26.9]} 19... Kf7 {[%clk 0:00:16.9]} 20. Qxd7+ {[%clk 0:00:18.1]}
20... Qxd7 {[%clk 0:00:17.5]} 21. Rxd7+ {[%clk 0:00:18.4]} 21... Ke6 {[%clk
0:00:18.2]} 22. Rxg7 {[%clk 0:00:14.8]} 22... Bd5 {[%clk 0:00:18.9]} 23. e4
{[%clk 0:00:14.1]} 23... Bc4 {[%clk 0:00:18.8]} 24. Bf5+ {[%clk 0:00:13.2]}
24... Kd6 {[%clk 0:00:17.5]} 25. Rd1+ {[%clk 0:00:13.6]} 25... Kc6 {[%clk
0:00:17]} 26. Rgd7 {[%clk 0:00:13.8]} 26... Rhc8 {[%clk 0:00:16]} 27. R1d6+
{[%clk 0:00:14.2]} 27... Kb5 {[%clk 0:00:15.6]} 28. Nd2 {[%clk 0:00:14.6]} 28...
a4 {[%clk 0:00:15.1]} 29. Ra7 {[%clk 0:00:13.6]} 29... Bb3 {[%clk 0:00:15.3]}
30. Bd7+ {[%clk 0:00:13.5]} 30... Rc6 {[%clk 0:00:11.5]} 31. Rxc6 {[%clk
0:00:13.2]} 31... c4 {[%clk 0:00:06.6]} 32. Rxf6+ {[%clk 0:00:09.9]} 32... Kc5
{[%clk 0:00:06.8]} 33. Ra5+ {[%clk 0:00:10.4]} 33... Rb5 {[%clk 0:00:04.9]} 34.
Rxb5# {[%clk 0:00:11.3]} 1-0

[Event "*** Titled Tuesday Blitz"]
[Site "Chess.com"]
[Date "2020.05.26"]
[Round "7"]
[White "MoonlighT89"]
[Black "platy3"]
[Result "0-1"]
[WhiteElo "2542"]
[BlackElo "2699"]
[TimeControl "180+1"]
[EndTime "11:21:06 PDT"]
[Termination "platy3 won on time"]

1. e4 {[%clk 0:03:00.9]} 1... c5 {[%clk 0:02:58.6]} 2. Nf3 {[%clk 0:03:00.2]}
2... d6 {[%clk 0:02:56.1]} 3. d4 {[%clk 0:02:58.2]} 3... cxd4 {[%clk 0:02:56.1]}
4. Nxd4 {[%clk 0:02:59.1]} 4... Nf6 {[%clk 0:02:56.4]} 5. Nc3 {[%clk 0:02:59]}
5... Nc6 {[%clk 0:02:53.9]} 6. Nde2 {[%clk 0:02:46.8]} 6... g6 {[%clk
0:02:51.9]} 7. g3 {[%clk 0:02:43.1]} 7... Bg7 {[%clk 0:02:51.6]} 8. Bg2 {[%clk
0:02:43.5]} 8... O-O {[%clk 0:02:51.2]} 9. O-O {[%clk 0:02:43.6]} 9... Bd7
{[%clk 0:02:49.5]} 10. b3 {[%clk 0:02:37.1]} 10... b5 {[%clk 0:02:36.3]} 11. Rb1
{[%clk 0:02:27.9]} 11... Rb8 {[%clk 0:02:16.2]} 12. Bb2 {[%clk 0:02:24]} 12...
Qa5 {[%clk 0:01:49.1]} 13. Nd5 {[%clk 0:01:59.1]} 13... Nxd5 {[%clk 0:01:42]}
14. exd5 {[%clk 0:01:59.9]} 14... Ne5 {[%clk 0:01:37.5]} 15. f4 {[%clk
0:01:35.7]} 15... Ng4 {[%clk 0:01:30]} 16. Bxg7 {[%clk 0:01:35.4]} 16... Kxg7
{[%clk 0:01:28.9]} 17. Qd4+ {[%clk 0:01:35.6]} 17... Nf6 {[%clk 0:01:26.6]} 18.
Rb2 {[%clk 0:01:08]} 18... Rfc8 {[%clk 0:01:23.5]} 19. c3 {[%clk 0:01:06.3]}
19... Qc7 {[%clk 0:01:10.9]} 20. h3 {[%clk 0:01:04.1]} 20... h5 {[%clk 0:01:08]}
21. Re1 {[%clk 0:00:47.7]} 21... a5 {[%clk 0:01:07.4]} 22. Rc2 {[%clk 0:00:41]}
22... a4 {[%clk 0:01:06.1]} 23. Kh2 {[%clk 0:00:36.1]} 23... axb3 {[%clk
0:01:00.5]} 24. axb3 {[%clk 0:00:37]} 24... Ra8 {[%clk 0:01:01.1]} 25. Ng1
{[%clk 0:00:37.1]} 25... Bf5 {[%clk 0:00:57.2]} 26. Rcc1 {[%clk 0:00:30.8]}
26... Ra3 {[%clk 0:00:52.2]} 27. Qb4 {[%clk 0:00:20.7]} 27... Ra2 {[%clk
0:00:50]} 28. Re2 {[%clk 0:00:21.1]} 28... Qa7 {[%clk 0:00:45.4]} 29. Qxb5
{[%clk 0:00:17.2]} 29... Ng4+ {[%clk 0:00:30.4]} 30. hxg4 {[%clk 0:00:16.3]}
30... hxg4 {[%clk 0:00:31.3]} 31. Rxa2 {[%clk 0:00:14.1]} 31... Rh8+ {[%clk
0:00:31.2]} 32. Nh3 {[%clk 0:00:12.1]} 32... Qxa2 {[%clk 0:00:31.7]} 33. Kh1
{[%clk 0:00:06.7]} 33... Rxh3+ {[%clk 0:00:26.1]} 34. Bxh3 {[%clk 0:00:05.9]}
34... Be4+ {[%clk 0:00:25.3]} 35. Kg1 {[%clk 0:00:05.6]} 35... gxh3 {[%clk
0:00:25.7]} 0-1